fUST/lending_fUST_20251030
["ID","MTS","AMOUNT","RATE_DAILY","PERIOD"]
[392650709,1761774968124,300.0,0.000247,2]
[392650710,1761774978423,300.0,0.000247,2]
[392650711,1761774989817,300.0,0.000247,2]
[392650713,1761775076007,5000.0,0.00024703,2]
[392650714,1761775085804,1078.69785239,0.00024703,2]
[392650715,1761775102361,3021.31214761,0.00024703,2]
[392650716,1761775102384,1978.68785239,0.00024703,2]
[392650717,1761775105724,300.0,0.000247,2]
[392650718,1761775110776,361.76882233,0.00024703,2]
[392650719,1761775116185,300.0,0.000247,2]
[392650720,1761775126575,300.0,0.000247,2]
[392650721,1761775127191,5000.0,0.00024703,2]
[392650722,1761775140840,-244.36947019,0.000248,2]
[392650726,1761775299307,-150.0,0.00026439,30]
[392650743,1761775318416,-187.504,0.00027727,17]
[392650744,1761775329041,-244.36394245,0.00024306,2]
[392650745,1761775329066,-500.0,0.000244,2]
[392650746,1761775329093,-5000.0,0.00024552,2]
[392650747,1761775329118,-183.90881873,0.00024876,2]
[392650748,1761775329142,-153.4161496,0.00025496,2]
[392650749,1761775329166,-180.00180002,0.00026393,2]
[392650750,1761775329190,-1251.6932506,0.00026459,2]
[392650751,1761775329215,-300.0,0.0002657,2]
[392650752,1761775329239,-300.0,0.00026571,2]
[392650753,1761775329266,-1200.0,0.00026571,2]
[392650754,1761775329291,-300.0,0.00026572,2]
[392650755,1761775329314,-300.0,0.00026572,2]
[392650756,1761775329336,-300.0,0.00026572,2]
[392650757,1761775329361,-22814.7334197,0.00026572,2]
[392650758,1761775329385,-500.0,0.00026573,2]
[392650759,1761775329409,-500.0,0.00026573,2]
[392650760,1761775329432,-532.28027226,0.00026573,2]
[392650761,1761775329455,-601.98788449,0.00026573,2]
[392650762,1761775329480,-159.96937446,0.00026573,2]
[392650763,1761775329503,-629.0,0.00026573,2]
[392650764,1761775329531,-500.0,0.00026598,2]
[392650765,1761775329557,-500.0,0.00026598,2]
[392650766,1761775329584,-500.0,0.00026598,2]
[392650767,1761775329611,-386.55702722,0.00026598,2]
[392650768,1761775329637,-500.0,0.00026598,2]
[392650769,1761775329665,-479.78017209,0.00026598,2]
[392650770,1761775329691,-500.0,0.00026598,2]
[392650771,1761775329719,-500.0,0.00026598,2]
[392650772,1761775329746,-500.0,0.00026598,2]
[392650773,1761775329773,-500.0,0.00026598,2]
[392650774,1761775329796,-217.01240611,0.00026876,2]
[392650775,1761775329818,-1000.0,0.00027121,2]
[392650776,1761775329841,-300.0,0.00028739,2]
[392650777,1761775329865,-1680.0,0.00028866,2]
[392650778,1761775353989,-5000.0,0.00024953,5]
[392650779,1761775354010,-160.0,0.000276,2]
[392650780,1761775354033,-300.0,0.00028148,2]
[392650781,1761775369856,5000.0,0.00028866,2]
[392650782,1761775393607,5000.0,0.00028866,2]
[392650785,1761775416480,5000.0,0.00028866,2]
[392650787,1761775437153,182.43039424,0.0002589,2]
[392650788,1761775437520,215.2678652,0.0002789,2]
[392650789,1761775440153,5000.0,0.00028866,2]
[392650791,1761775463306,5000.0,0.00028866,4]
[392650792,1761775486362,4790.09322283,0.00028866,4]
[392650793,1761775486693,-209.90677717,0.00028866,4]
[392650794,1761775486725,-163.05,0.0002898,3]
[392650795,1761775486758,-489.16,0.0002898,3]
[392650796,1761775486786,-500.0,0.00029671,5]
[392650797,1761775486820,-816.65742616,0.00029888,2]
[392650798,1761775486851,-248.10533616,0.0002989,2]
[392650799,1761775486883,-1496.96457382,0.0002989,2]
[392650800,1761775489777,-2152.32177338,0.0002989,2]
[392650801,1761775489806,-151.0,0.00029972,2]
[392650802,1761775489835,-151.0,0.00029972,2]
[392650803,1761775489864,-151.0,0.00029972,2]
[392650804,1761775489894,-151.0,0.00029972,2]
[392650805,1761775489923,-151.0,0.00029972,2]
[392650806,1761775489952,-151.0,0.00029972,2]
[392650807,1761775489981,-151.0,0.00029972,2]
[392650808,1761775490009,-151.0,0.00029972,2]
[392650809,1761775490038,-151.0,0.00029972,2]
[392650810,1761775490067,-151.0,0.00029972,2]
[392650811,1761775490094,-151.0,0.00029972,2]
[392650812,1761775490123,-151.0,0.00029972,2]
[392650813,1761775490150,-151.0,0.00029972,2]
[392650814,1761775490177,-151.0,0.00029972,2]
[392650815,1761775490204,-151.0,0.00029972,2]
[392650816,1761775490231,-151.0,0.00029972,2]
[392650817,1761775490257,-151.0,0.00029972,2]
[392650818,1761775490284,-151.0,0.00029972,2]
[392650819,1761775490310,-108.36645324,0.00029972,2]
[392650820,1761775495554,-42.63354676,0.00029972,2]
[392650821,1761775495583,-151.0,0.00029972,2]
[392650822,1761775495611,-500.0,0.00029973,5]
[392650823,1761775495639,-500.0,0.00029973,5]
[392650824,1761775495668,-500.0,0.00029973,5]
[392650825,1761775495696,-500.0,0.00029973,5]
[392650826,1761775495723,-500.0,0.00029973,5]
[392650827,1761775495751,-500.0,0.00029973,5]
[392650828,1761775497260,155.21825853,0.000298,2]
[392650829,1761775499524,152.59875458,0.0002988,2]
[392650831,1761775502802,1033.15478411,0.00029979,2]
[392650833,1761775540132,-2939.43361419,0.00024953,2]
[392650834,1761775625108,-443.03504703,0.00024953,2]
[392650837,1761775643084,-1047.55000775,0.00024953,2]
[392650846,1761775680360,179.64,0.00016234,20]
[392650847,1761775680655,179.63,0.00016234,30]
[392650850,1761775754116,-5000.0,0.00024703,2]
[392650851,1761775754137,-1018.50398396,0.00027781,2]
[392650852,1761775758752,-3612.64233646,0.00027781,2]
[392650855,1761775761642,-189.16877671,0.0002589,2]
[392650856,1761775761673,-2774.72532708,0.00027781,2]
[392650857,1761775761701,-223.21915652,0.0002789,2]
[392650858,1761775761729,-480.4710556,0.00028094,2]
[392650859,1761775764680,-3934.2547166,0.0002898,2]
[392650860,1761775764714,-500.0,0.00028989,2]
[392650861,1761775764748,-500.0,0.00028989,2]
[392650862,1761775767699,-500.0,0.00028989,2]
[392650863,1761775767728,-263.75261831,0.00028989,2]
[392650864,1761775767757,-500.0,0.00028989,2]
[392650865,1761775767785,-500.0,0.00028989,2]
[392650866,1761775767812,-500.0,0.00028989,2]
[392650867,1761775767843,-376.28411414,0.00028989,2]
[392650868,1761775767876,-500.0,0.00028989,2]
[392650901,1761775832094,-2000.0,0.00024,2]
[392650902,1761775832104,-1541.71783507,0.00024953,2]
[392650904,1761775832114,-132.91222765,0.00025,7]
[392651073,1761775837944,-107.94257512,0.00025,7]
[392651165,1761775840683,-3e-08,0.00025,7]
[392651189,1761775843523,-1759.1451972,0.00025,7]
[392651190,1761775843532,-378.2589841,0.000271,2]
[392651191,1761775843542,-54.93802121,0.00027238,2]
[392651192,1761775843703,-326.60373491,0.00027238,2]
[392651213,1761775846184,-69.59943418,0.00027238,2]
[392651214,1761775846204,-294.3356457,0.00027238,2]
[392651215,1761775846213,-725.0,0.00028412,2]
[392651216,1761775846222,-5000.0,0.00028413,2]
[392651217,1761775846232,-786.72458934,0.000287,2]
[392651219,1761775846243,-1257.75,0.000287,2]
[392651221,1761775846254,-2955.52541066,0.000287,2]
[392651222,1761775846263,-14502.68557745,0.0002899,2]
[392651226,1761775899973,-2000.0,0.00023,3]
[392651227,1761775900004,-1000.01,0.00024953,2]
[392651228,1761775902728,-3999.99,0.00024953,2]
[392651229,1761775902761,-500.0,0.00028989,2]
[392651230,1761775902802,-500.0,0.00028989,2]
[392651233,1761775934634,500.0,0.00029979,120]
[392651234,1761775934865,500.0,0.00029979,120]
[392651235,1761775935099,500.0,0.00029979,120]
[392651238,1761776203933,500.0,0.00028989,120]
[392651260,1761776832087,-303.05255122,0.00021677,2]
[392651263,1761776847096,-128.09107506,0.00021677,2]
[392651264,1761776847118,-207.6245947,0.00021787,2]
[392651265,1761776847138,-184.60355419,0.00021896,2]
[392651266,1761776849083,-196.03955511,0.00021896,2]
[392651268,1761776898986,1009.53008289,0.00015,2]
[392651270,1761776905553,286.96778653,0.0001,2]
[392651271,1761776910973,8703.51213058,0.00017,2]
[392651272,1761776910997,385.69160654,0.00017,2]
[392651273,1761776913304,172.084945,0.00015,2]
[392651276,1761776923488,-4619.3568907,0.0002146,2]
[392651277,1761776923968,-5000.0,0.00021677,2]
[392651278,1761776924247,-300.0,0.00023786,2]
[392651279,1761776924285,-244.99702175,0.00023787,2]
[392651280,1761776924322,-403.72361849,0.00024684,2]
[392651281,1761776924360,-282.36944879,0.00025787,2]
[392651282,1761776924398,-200.0,0.000258,2]
[392651283,1761776924783,-8725.55763486,0.00025853,2]
[392651284,1761776924803,-4388.20458264,0.00025853,2]
[392651285,1761776924814,-3402.1153968,0.000274,2]
[392651286,1761776924825,-319.74187584,0.00027787,2]
[392651287,1761776924837,-302.96428961,0.00028481,2]
[392651288,1761776924848,-156.68088925,0.00028873,2]
[392651289,1761776924859,-726.58820073,0.00028888,2]
[392651290,1761776924870,-500.0,0.00028972,2]
[392651291,1761776924882,-203.71476513,0.00028972,2]
[392651292,1761776924924,-296.28523487,0.00028972,2]
[392651293,1761776924963,-449.86410238,0.00028972,2]
[392651294,1761776925002,-500.0,0.00028972,2]
[392651295,1761776925048,-500.0,0.00028972,2]
[392651296,1761776925096,-500.0,0.00028972,2]
[392651297,1761776925142,-500.0,0.00028972,2]
[392651298,1761776925182,-500.0,0.00028972,2]
[392651299,1761776925222,-603.8558698,0.00028972,2]
[392651300,1761776925261,-500.0,0.00028972,2]
[392651301,1761776925298,-500.0,0.00028972,2]
[392651302,1761776925412,-500.0,0.00028972,2]
[392651303,1761776925450,-500.0,0.00028972,2]
[392651304,1761776925490,-500.0,0.00028972,2]
[392651305,1761776925529,-500.0,0.00028972,2]
[392651306,1761776925569,-500.0,0.00028972,2]
[392651307,1761776925609,-500.0,0.00028972,2]
[392651308,1761776925645,-500.0,0.00028972,2]
[392651309,1761776925683,-500.0,0.00028972,2]
[392651310,1761776925720,-500.0,0.00028972,2]
[392651311,1761776925760,-500.0,0.00028972,2]
[392651312,1761776925870,-512.88989678,0.00028972,2]
[392651313,1761776925907,-500.0,0.00028972,2]
[392651314,1761776925947,-500.0,0.00028972,2]
[392651315,1761776925988,-500.0,0.00028972,2]
[392651316,1761776926025,-500.0,0.00028972,2]
[392651317,1761776926064,-500.0,0.00028972,2]
[392651318,1761776926102,-500.0,0.00028972,2]
[392651319,1761776926137,-500.0,0.00028972,2]
[392651320,1761776926174,-500.0,0.00028972,2]
[392651321,1761776926212,-474.23020644,0.00028972,2]
[392651322,1761776926366,-25.76979356,0.00028972,2]
[392651323,1761776926401,-500.0,0.00028972,2]
[392651324,1761776926437,-500.0,0.00028972,2]
[392651325,1761776926473,-500.0,0.00028972,2]
[392651326,1761776926508,-500.0,0.00028972,2]
[392651327,1761776926543,-500.0,0.00028972,2]
[392651328,1761776926578,-589.18352708,0.00028972,2]
[392651329,1761776926612,-500.0,0.00028972,2]
[392651330,1761776926646,-500.0,0.00028972,2]
[392651331,1761776926678,-500.0,0.00028972,2]
[392651332,1761776926713,-270.10335872,0.00028972,2]
[392651333,1761776927350,-229.89664128,0.00028972,2]
[392651334,1761776927400,-500.0,0.00028972,2]
[392651335,1761776927432,-500.0,0.00028972,2]
[392651336,1761776927465,-500.0,0.00028972,2]
[392651337,1761776927495,-500.0,0.00028972,2]
[392651338,1761776927528,-469.94158011,0.00028972,2]
[392651339,1761776927560,-500.0,0.00028972,2]
[392651340,1761776927591,-500.0,0.00028972,2]
[392651341,1761776927623,-500.0,0.00028972,2]
[392651342,1761776927654,-500.0,0.00028972,2]
[392651343,1761776927684,-100.33355722,0.00028972,2]
[392651344,1761776927833,-399.66644278,0.00028972,2]
[392651345,1761776927863,-500.0,0.00028972,2]
[392651346,1761776927894,-500.0,0.00028972,2]
[392651347,1761776927924,-500.0,0.00028972,2]
[392651348,1761776927954,-500.0,0.00028972,2]
[392651349,1761776927983,-500.0,0.00028972,2]
[392651350,1761776928010,-500.0,0.00028973,5]
[392651351,1761776928038,-500.0,0.00028973,5]
[392651352,1761776928066,-376.98239395,0.00028973,5]
[392651353,1761776928095,-500.0,0.00028973,5]
[392651354,1761776928124,-151.0,0.00028973,2]
[392651355,1761776928270,-151.0,0.00028973,2]
[392651356,1761776928298,-151.0,0.00028973,2]
[392651357,1761776928329,-151.0,0.00028973,2]
[392651358,1761776928358,-151.0,0.00028973,2]
[392651359,1761776928386,-151.0,0.00028973,2]
[392651360,1761776928414,-151.0,0.00028973,2]
[392651361,1761776928442,-151.0,0.00028973,2]
[392651362,1761776928471,-151.0,0.00028973,2]
[392651363,1761776928501,-151.0,0.00028973,2]
[392651364,1761776928530,-151.0,0.00028973,2]
[392651365,1761776928559,-151.0,0.00028973,2]
[392651366,1761776928587,-151.0,0.00028973,2]
[392651367,1761776928616,-151.0,0.00028973,2]
[392651368,1761776928645,-151.0,0.00028973,2]
[392651369,1761776928674,-151.0,0.00028973,2]
[392651370,1761776928702,-151.0,0.00028973,2]
[392651371,1761776928731,-151.0,0.00028973,2]
[392651372,1761776928759,-151.0,0.00028973,2]
[392651373,1761776928786,-151.0,0.00028973,2]
[392651374,1761776928815,-150.003,0.00028973,21]
[392651375,1761776928841,-166.66,0.00028973,14]
[392651376,1761776928868,-500.0,0.00028976,2]
[392651377,1761776928896,-151.0,0.00028976,2]
[392651378,1761776928925,-151.0,0.00028976,2]
[392651379,1761776928955,-500.0,0.00028976,2]
[392651380,1761776928984,-500.0,0.00028976,2]
[392651381,1761776929061,-500.0,0.00028976,2]
[392651382,1761776929090,-500.0,0.00028977,2]
[392651383,1761776929119,-500.0,0.00028977,2]
[392651384,1761776929148,-500.0,0.00028977,2]
[392651385,1761776929175,-500.0,0.00028978,2]
[392651386,1761776929209,-500.0,0.00028978,2]
[392651387,1761776929239,-213.6599707,0.00028978,2]
[392651388,1761776929270,-151.0,0.00028978,2]
[392651389,1761776929297,-500.0,0.00028978,2]
[392651390,1761776929324,-500.0,0.00028978,2]
[392651391,1761776929350,-500.0,0.00028978,2]
[392651392,1761776930712,-326.684,0.00028978,2]
[392651393,1761776930728,-173.316,0.00028978,2]
[392651394,1761776930736,-207.80261313,0.00028978,2]
[392651395,1761776930745,-118.88138687,0.00028978,2]
[392651396,1761776930760,-381.11861313,0.00028978,2]
[392651397,1761776930769,-118.88138687,0.00028978,2]
[392651398,1761776930783,-270.6900586,0.00028978,2]
[392651399,1761776930814,-110.42855453,0.00028978,2]
[392651400,1761776930841,-500.0,0.00028978,2]
[392651401,1761776930867,-500.0,0.00028978,2]
[392651402,1761776930894,-500.0,0.00028978,2]
[392651403,1761776930924,-1999.0,0.00028978,2]
[392651404,1761776930953,-283.42099661,0.00028979,2]
[392651405,1761776930985,-500.0,0.00028979,2]
[392651406,1761776931014,-579.6840649,0.00028979,2]
[392651407,1761776931047,-54.94276792,0.00028979,2]
[392651408,1761776931076,-500.0,0.00028979,2]
[392651409,1761776931106,-500.0,0.00028979,2]
[392651410,1761776931135,-500.0,0.00028979,2]
[392651411,1761776931163,-594.01,0.0002898,3]
[392651412,1761776931450,-54.94276792,0.0002898,2]
[392651413,1761776931464,-5702.10446416,0.0002898,2]
[392651414,1761776931478,-10000.01,0.0002898,2]
[392651415,1761776931492,-10000.01,0.0002898,2]
[392651416,1761776931506,-10000.01,0.0002898,2]
[392651417,1761776931520,-10000.01,0.0002898,2]
[392651418,1761776931535,-10000.01,0.0002898,2]
[392651419,1761776932485,-10000.01,0.0002898,2]
[392651420,1761776932739,-3041.37874938,0.0002898,2]
[392651421,1761776932763,-3917.25250124,0.0002898,2]
[392651422,1761776932970,-2234.24495432,0.0002898,2]
[392651423,1761776932995,-5531.52009136,0.0002898,2]
[392651424,1761776935475,-151.535699,0.00028988,31]
[392651425,1761776935504,-151.0,0.00028988,31]
[392651426,1761776935536,-151.0,0.00028988,31]
[392651427,1761776935565,-198.419472,0.00028988,31]
[392651428,1761776935594,-151.0,0.00028988,31]
[392651429,1761776935623,-151.0,0.00028988,31]
[392651430,1761776935652,-151.0,0.00028988,31]
[392651431,1761776935687,-151.0,0.00028988,31]
[392651432,1761776935718,-151.0,0.00028988,30]
[392651433,1761776935748,-151.0,0.00028988,31]
[392651434,1761776935775,-151.0,0.00028988,15]
[392651435,1761776935803,-151.0,0.00028988,31]
[392651436,1761776935831,-151.0,0.00028988,31]
[392651437,1761776935859,-500.0,0.00028989,2]
[392651438,1761776936226,-4978.099658,0.0002899,2]
[392651439,1761776936241,-10000.01,0.0002899,2]
[392651440,1761776936266,-10000.01,0.0002899,2]
[392651441,1761776936300,-223.65443297,0.00028972,2]
[392651442,1761776936310,-163.10525969,0.00028972,2]
[392651443,1761776936319,-9613.25030734,0.0002899,2]
[392651444,1761776936345,-10000.01,0.0002899,2]
[392651445,1761776936360,-10000.01,0.0002899,2]
[392651446,1761776936374,-10000.01,0.0002899,2]
[392651447,1761776944467,-5000.0,0.00024953,5]
[392651448,1761776944504,-0.01,0.0002899,2]
[392651449,1761776944590,-10000.01,0.0002899,2]
[392651450,1761776944723,-10000.01,0.0002899,2]
[392651451,1761776944848,-905.88445721,0.0002899,2]
[392651452,1761776944876,-152.013966,0.0002899,31]
[392651453,1761776944908,-151.0,0.0002899,31]
[392651454,1761776944938,-151.0,0.0002899,31]
[392651455,1761776944968,-185.993006,0.0002899,31]
[392651456,1761776944998,-151.0,0.0002899,31]
[392651457,1761776945027,-151.0,0.0002899,31]
[392651458,1761776945058,-151.0,0.0002899,31]
[392651459,1761776945087,-151.0,0.0002899,31]
[392651460,1761776945116,-151.0,0.0002899,31]
[392651461,1761776945144,-151.0,0.0002899,7]
[392651462,1761776945173,-151.0,0.0002899,31]
[392651463,1761776945205,-257.0,0.0002899,31]
[392651464,1761776945235,-151.0,0.0002899,31]
[392651465,1761776945265,-151.0,0.0002899,31]
[392651466,1761776945294,-151.0,0.0002899,31]
[392651467,1761776945323,-151.0,0.0002899,31]
[392651468,1761776945351,-151.0,0.0002899,31]
[392651469,1761776945379,-151.0,0.0002899,31]
[392651470,1761776945407,-151.0,0.0002899,31]
[392651471,1761776945437,-247.197648,0.0002899,31]
[392651472,1761776945466,-151.0,0.0002899,31]
[392651473,1761776945494,-151.0,0.0002899,15]
[392651474,1761776945522,-151.0,0.0002899,31]
[392651475,1761776945549,-151.0,0.0002899,31]
[392651476,1761776945576,-151.0,0.0002899,31]
[392651477,1761776945605,-10.83184558,0.0002899,31]
[392651478,1761776946051,-140.16815442,0.0002899,31]
[392651479,1761776949122,-3608.91800559,0.00024953,5]
[392651480,1761776953508,-1391.08199441,0.00024953,5]
[392651481,1761776953536,-302.63687509,0.00028845,22]
[392651482,1761776953564,-1999.0,0.0002898,2]
[392651483,1761776953594,-151.0,0.0002899,31]
[392651484,1761776953620,-151.0,0.0002899,31]
[392651485,1761776953648,-251.617197,0.0002899,31]
[392651486,1761776953676,-151.0,0.0002899,31]
[392651487,1761776953705,-151.0,0.0002899,31]
[392651488,1761776953732,-230.142842,0.0002899,31]
[392651489,1761776953761,-151.0,0.0002899,31]
[392651490,1761776953888,-151.0,0.0002899,31]
[392651491,1761776953919,-151.0,0.0002899,31]
[392651492,1761776953949,-275.167152,0.0002899,31]
[392651493,1761776953979,-151.0,0.0002899,31]
[392651494,1761776954010,-151.0,0.0002899,31]
[392651495,1761776954041,-238.54047,0.0002899,31]
[392651496,1761776954070,-151.0,0.0002899,31]
[392651497,1761776954100,-238.54047,0.0002899,31]
[392651498,1761776954130,-238.54047,0.0002899,31]
[392651499,1761776954161,-238.54047,0.0002899,31]
[392651500,1761776954191,-151.0,0.0002899,28]
[392651501,1761776954224,-151.0,0.0002899,31]
[392651502,1761776954252,-151.0,0.0002899,31]
[392651503,1761776954281,-151.0,0.0002899,31]
[392651504,1761776954317,-151.0,0.0002899,31]
[392651505,1761776954345,-153.186882,0.0002899,31]
[392651506,1761776954374,-151.0,0.0002899,31]
[392651507,1761776954403,-151.0,0.0002899,2]
[392651508,1761776954574,-151.0,0.0002899,31]
[392651509,1761776954605,-151.0,0.0002899,31]
[392651510,1761776954632,-221.949904,0.0002899,31]
[392651511,1761776954661,-151.0,0.0002899,31]
[392651512,1761776954688,-151.0,0.0002899,31]
[392651513,1761776955285,-29.01973,0.00029023,2]
[392651514,1761776955300,-151.0,0.00029023,2]
[392651515,1761776955315,-1959.078364,0.00029023,2]
[392651516,1761776955333,-10000.01,0.00029023,2]
[392651517,1761776955349,-10000.01,0.00029023,2]
[392651518,1761776955365,-10000.01,0.00029023,2]
[392651519,1761776955379,-4218.7411474,0.00029023,2]
[392651520,1761776955389,-3882.88252284,0.00029023,2]
[392651521,1761776955400,-500.0,0.00029031,2]
[392651522,1761776955409,-246.35624162,0.00029031,2]
[392651523,1761776955419,-500.0,0.00029031,2]
[392651524,1761776955430,-500.0,0.00029031,2]
[392651525,1761776955446,-152.03008814,0.00029031,2]
[392651526,1761776955469,-347.96991186,0.00029031,2]
[392651527,1761776955479,-500.0,0.00029032,2]
[392651528,1761776955488,-500.0,0.00029032,2]
[392651529,1761776955497,-500.0,0.00029032,2]
[392651530,1761776955506,-500.0,0.00029033,2]
[392651531,1761776955516,-500.0,0.00029033,2]
[392651532,1761776955525,-151.0,0.00029033,2]
[392651533,1761776955535,-500.0,0.00029033,2]
[392651534,1761776955544,-500.0,0.00029033,2]
[392651535,1761776955554,-500.0,0.00029033,2]
[392651536,1761776955563,-500.0,0.00029033,2]
[392651537,1761776955573,-500.0,0.00029033,2]
[392651538,1761776955583,-500.0,0.00029033,2]
[392651539,1761776955592,-500.0,0.00029033,2]
[392651540,1761776955602,-500.0,0.00029033,2]
[392651541,1761776955611,-500.0,0.00029033,2]
[392651542,1761776955621,-2432.8575648,0.00029033,2]
[392651543,1761776955630,-68.18252334,0.00029073,5]
[392651544,1761776959588,-887.78908151,0.00024953,5]
[392651545,1761776959617,-431.81747666,0.00029073,5]
[392651546,1761776959647,-500.0,0.00029073,5]
[392651547,1761776959677,-404.52329015,0.00029073,3]
[392651548,1761776959706,-500.0,0.00029073,5]
[392651549,1761776959735,-500.0,0.00029073,5]
[392651550,1761776959764,-500.0,0.00029086,2]
[392651551,1761776959792,-500.0,0.00029086,2]
[392651552,1761776959822,-500.0,0.00029086,2]
[392651553,1761776959851,-51.75030336,0.00029086,2]
[392651555,1761776959950,-448.24969664,0.00029086,2]
[392651556,1761776959980,-500.0,0.00029087,2]
[392651557,1761776960009,-500.0,0.00029087,2]
[392651558,1761776960039,-500.0,0.00029087,2]
[392651559,1761776960067,-500.0,0.00029088,2]
[392651560,1761776960096,-174.32531695,0.00029088,2]
[392651561,1761776960124,-151.0,0.00029088,2]
[392651562,1761776960153,-500.0,0.00029088,2]
[392651563,1761776960181,-500.0,0.00029088,2]
[392651564,1761776960210,-500.0,0.00029088,2]
[392651565,1761776960237,-500.0,0.00029088,2]
[392651566,1761776960334,-500.0,0.00029088,2]
[392651567,1761776960363,-500.0,0.00029088,2]
[392651568,1761776960392,-500.0,0.00029088,2]
[392651569,1761776960422,-485.32426487,0.00029088,2]
[392651570,1761776960451,-338.52738612,0.00029088,2]
[392651571,1761776960482,-151.0,0.00029133,31]
[392651572,1761776960510,-301.999999,0.00029133,31]
[392651573,1761776960538,-151.0,0.00029133,31]
[392651574,1761776960567,-151.0,0.00029133,31]
[392651575,1761776960597,-151.0,0.00029133,31]
[392651576,1761776960626,-151.0,0.00029133,31]
[392651577,1761776960655,-151.0,0.00029133,31]
[392651578,1761776960685,-238.54047,0.00029133,31]
[392651579,1761776960716,-238.54047,0.00029133,31]
[392651580,1761776960745,-238.54047,0.00029133,31]
[392651581,1761776960774,-238.54047,0.00029133,31]
[392651582,1761776960802,-151.0,0.00029133,28]
[392651583,1761776960831,-151.0,0.00029133,31]
[392651584,1761776960859,-153.747999,0.00029133,31]
[392651585,1761776960960,-291.167788,0.00029133,31]
[392651586,1761776960989,-151.0,0.00029133,31]
[392651587,1761776961018,-151.0,0.00029133,31]
[392651588,1761776961050,-151.0,0.00029133,31]
[392651589,1761776961077,-612.83761363,0.0002914,2]
[392651590,1761776961209,-500.0,0.0002914,2]
[392651591,1761776961240,-500.0,0.0002914,2]
[392651592,1761776961271,-500.0,0.00029141,2]
[392651593,1761776961300,-500.0,0.00029141,2]
[392651594,1761776961329,-500.0,0.00029141,2]
[392651595,1761776961357,-151.0,0.00029142,7]
[392651596,1761776961384,-195.974458,0.00029142,31]
[392651597,1761776961412,-151.0,0.00029142,31]
[392651598,1761776961439,-151.0,0.00029142,31]
[392651599,1761776961467,-151.0,0.00029142,31]
[392651600,1761776961494,-151.0,0.00029142,15]
[392651601,1761776961524,-151.0,0.00029142,31]
[392651602,1761776961707,-151.0,0.00029142,31]
[392651603,1761776961735,-500.0,0.00029142,2]
[392651604,1761776961762,-280.73795353,0.00029142,2]
[392651605,1761776961790,-500.0,0.00029142,2]
[392651606,1761776961817,-371.94225671,0.00029142,2]
[392651607,1761776961844,-500.0,0.00029142,2]
[392651608,1761776961872,-476.0,0.00029142,2]
[392651609,1761776961898,-501.38960335,0.00029142,2]
[392651610,1761776961925,-500.0,0.00029142,2]
[392651611,1761776961953,-500.0,0.00029142,2]
[392651612,1761776961983,-386.14722921,0.00029195,2]
[392651613,1761776962011,-165.5759144,0.00029196,2]
[392651614,1761776963454,-217.06509066,0.00029196,2]
[392651615,1761776963474,-117.35899494,0.00029196,2]
[392651616,1761776963485,-382.64100506,0.00029196,2]
[392651617,1761776963503,-117.35899494,0.00029196,2]
[392651618,1761776963513,-166.66,0.00029247,14]
[392651619,1761776963522,-102.12823427,0.00029251,2]
[392651620,1761776963538,-397.87176573,0.00029251,2]